bitfinex-derivatives/quotes_ETHF0:USTF0_20260223
["timestamp","ask_amount","ask_price","bid_price","bid_amount"]
[1771838106118,2.18891521,1885.9,1885.1,2.04846452]
[1771838110216,1.92373521,1885.7,1885.1,2.04846452]
[1771838127134,2.59832776,1885.6,1885.1,2.04846452]
[1771838127334,2.09212364,1885.6,1885.1,2.04846452]
[1771838129235,2.09212364,1885.6,1885.3,2.12713668]
[1771838129739,2.35735364,1885.6,1884.9,2.13359395]
[1771838130034,2.35739364,1885.2,1884.7,2.12713668]
[1771838130229,0.50636279,1885.1,1884.9,2.12713668]
[1771838130435,2.09212364,1885.6,1885.1,2.12713668]
[1771838130637,2.35733364,1885.7,1885.3,2.12713668]
[1771838130934,2.35733364,1885.7,1885.3,2.13399017]
[1771838135238,2.35733364,1885.7,1885.3,0.00685349]
[1771838135434,2.35733364,1885.7,1885.4,2.12713668]
[1771838140240,2.35733364,1885.7,1885.3,0.00685349]
[1771838140440,2.09212364,1885.3,1884.6,2.12713668]
[1771838140642,2.35738364,1885.4,1884.9,2.12713668]
[1771838141138,2.35738364,1885.4,1884.8,2.25014432]
[1771838141139,2.09212364,1885.6,1885.3,2.12713668]
[1771838141644,2.09212364,1885.6,1885.3,0.00587575]
[1771838142443,2.63229877,1885.5,1885.3,0.00587575]
[1771838142645,0.54017513,1885.4,1885.2,2.12713668]
[1771838142839,2.09212364,1885.5,1885.2,2.12713668]
[1771838143033,2.63229967,1885.4,1885.1,2.12713668]
[1771838143342,2.09212364,1885.4,1885.1,2.12713668]
[1771838143742,2.09212364,1885.4,1885.1,2.1334337]
[1771838144445,2.09212364,1885.7,1885.1,2.1334337]
[1771838144746,0.0145853,1885.6,1885.3,2.12713668]
[1771838144945,2.09212364,1885.7,1885.3,2.12713668]
[1771838147545,2.06982837,1886.0,1885.7,2.07991352]
[1771838147852,1.62409242,1886.1,1885.7,2.07991352]
[1771838156647,0.53552584,1886.0,1885.7,2.07991352]
[1771838156851,1.56023582,1886.1,1885.7,2.07991352]
[1771838157052,0.53552583,1886.0,1885.7,2.07991352]
[1771838157257,1.56023582,1886.1,1885.7,2.07991352]
[1771838157450,0.53546065,1886.0,1885.7,2.07991352]
[1771838157753,1.56023582,1886.1,1885.7,2.07991352]
[1771838157950,2.08428346,1886.0,1885.7,2.07991352]
[1771838158151,1.54882281,1886.0,1885.7,2.07991352]
[1771838160352,0.26514,1886.2,1885.7,2.07991352]
[1771838160549,0.5354906,1886.1,1885.9,2.07991352]
[1771838160851,1.76038767,1886.2,1885.9,2.07991352]
[1771838161156,0.53549405,1886.1,1885.9,2.07991352]
[1771838161347,1.76038767,1886.2,1885.9,2.07991352]
[1771838161550,0.00561767,1886.4,1886.0,2.07991352]
[1771838161752,0.26514,1886.2,1886.0,2.07991352]
[1771838161951,0.00561767,1886.4,1886.2,2.07991352]
[1771838162153,12.66447564,1886.8,1886.2,2.07991352]
[1771838162454,8.25813008,1886.7,1886.2,2.07991352]
[1771838162654,1.53364121,1886.7,1886.2,2.07991352]
[1771838163052,1.83787937,1886.4,1886.0,2.07991352]
[1771838164653,0.2651,1886.4,1886.2,2.07991352]
[1771838164860,1.52434763,1886.6,1886.2,2.07991352]
[1771838165948,1.52434763,1886.6,1886.0,2.07991352]
[1771838166354,0.2651,1886.4,1886.0,2.07991352]
[1771838166658,1.75747126,1886.4,1886.0,2.07991352]
[1771838167659,0.2651,1886.4,1886.0,2.07991352]
[1771838171561,1.68716023,1886.4,1886.0,2.07991352]
[1771838171955,17.61745115,1887.4,1886.0,2.07991352]
[1771838172260,2.06982837,1887.5,1887.1,2.07991352]
[1771838172459,2.33476837,1887.6,1887.1,2.07991352]
[1771838173063,2.34139761,1887.6,1887.1,2.08480414]
[1771838173457,2.34139761,1887.6,1887.1,0.00489062]
[1771838173658,2.06982837,1887.4,1887.0,2.07991352]
[1771838174563,2.06982837,1887.4,1886.9,2.07991352]
[1771838174760,0.26498,1887.3,1886.7,2.07991352]
[1771838174968,0.00662924,1887.6,1887.2,2.07991352]
[1771838175264,2.07645761,1887.6,1887.2,2.07991352]
[1771838175764,2.07645761,1887.6,1887.2,2.08628269]
[1771838176161,2.33473837,1887.8,1887.4,2.07991352]
[1771838177061,0.26491,1887.8,1887.5,2.07991352]
[1771838177260,0.26983185,1887.8,1887.5,2.07991352]
[1771838177464,2.06982837,1888.0,1887.5,2.07991352]
[1771838178567,2.0756528,1888.0,1887.5,2.07991352]
[1771838179364,0.00582443,1888.0,1887.5,2.07991352]
[1771838179563,2.10603267,1888.0,1887.5,2.07991352]
[1771838179863,2.10603267,1888.0,1887.2,0.00636917]
[1771838179864,2.10020824,1887.8,1887.3,2.24770704]
[1771838186071,2.10020824,1887.6,1887.2,2.25407621]
[1771838186372,2.36512824,1887.7,1887.2,2.25407621]
[1771838187065,0.26492,1887.7,1887.2,2.25407621]
[1771838187267,0.26492,1887.7,1887.3,2.24770704]
[1771838187771,2.36512824,1887.7,1887.3,2.24770704]
[1771838187973,2.36512824,1887.7,1887.2,0.00636917]
[1771838188270,2.36512824,1887.7,1887.2,2.25407621]
[1771838195168,2.36517824,1887.4,1887.2,9.17e-06]
[1771838195376,2.36517824,1887.4,1886.5,2.24770704]
[1771838196274,2.36517824,1887.4,1886.5,2.25351708]
[1771838200180,0.53127211,1887.3,1886.5,2.25351708]
[1771838200379,0.26497,1887.4,1886.5,2.25351708]
[1771838200574,2.63148036,1887.3,1886.5,2.25351708]
[1771838200774,2.10020824,1887.3,1886.5,2.25351708]
[1771838201174,0.265,1887.1,1886.5,2.25351708]
[1771838201378,2.36520824,1887.1,1886.5,2.25351708]
[1771838202579,0.265,1887.1,1886.5,2.25351708]
[1771838203179,2.36520824,1887.1,1886.5,2.25351708]
[1771838205680,2.36523824,1886.9,1886.3,2.24770704]
[1771838205880,2.10020824,1886.7,1886.3,1.98197784]
[1771838206074,6.51894,1887.2,1885.8,2.24558505]
[1771838206075,2.36527824,1886.6,1885.9,1.4761339]
[1771838206784,2.3691258,1886.6,1885.9,1.48088408]
[1771838209785,2.1040558,1886.6,1886.1,1.74742466]
[1771838209982,2.44005407,1887.3,1886.5,1.83171592]
[1771838210187,2.44005407,1887.4,1886.8,1.83171592]
[1771838211191,2.44422699,1887.4,1886.8,1.83171592]
[1771838218892,2.44422699,1887.4,1886.6,2.04475558]
[1771838220895,2.44005407,1887.2,1886.6,2.04475558]
[1771838221199,2.44005407,1887.2,1886.2,2.04077391]
[1771838222096,2.44005407,1887.2,1886.2,2.23177391]
[1771838222500,2.44005407,1887.0,1886.2,2.23177391]
[1771838222902,2.44005407,1887.2,1886.2,2.04077391]
[1771838223204,2.97161273,1887.1,1886.2,2.04077391]
[1771838223393,2.44005407,1887.1,1886.2,2.04077391]
[1771838224594,2.44005407,1886.9,1886.2,2.04077391]
[1771838224900,2.44005407,1886.7,1886.0,2.34063171]
[1771838225101,2.44005407,1886.7,1886.0,2.14963171]
[1771838226404,2.44005407,1886.5,1886.0,2.14963171]
[1771838228813,2.44005407,1886.7,1886.0,2.14963171]
[1771838243521,0.26506,1886.8,1886.0,2.14963171]
[1771838243522,3.20342789,1886.5,1886.0,2.14963171]
[1771838243722,3.20342789,1886.5,1885.9,2.94458238]
[1771838245321,0.26507,1886.6,1885.9,2.94458238]
[1771838245521,3.46849789,1886.6,1885.9,2.94458238]
[1771838249528,3.46849789,1886.6,1885.9,0.00475018]
[1771838249825,3.46849789,1886.6,1885.9,3.04010965]
[1771838254330,3.73666432,1886.5,1885.9,3.04010965]
[1771838254630,3.20342789,1886.5,1885.9,3.04010965]
[1771838255234,3.20342789,1886.5,1886.2,5.28315544]
[1771838257236,3.20342789,1886.5,1886.2,2.24779597]
[1771838257735,3.20342789,1886.3,1885.9,0.00475018]
[1771838257934,3.73675842,1886.2,1885.8,2.24779597]
[1771838258134,3.20342789,1886.2,1885.9,3.03535947]
[1771838258336,3.20342789,1886.2,1885.8,5.28315544]
[1771838259035,3.20342789,1886.2,1885.8,5.28703187]
[1771838260334,3.20342789,1886.6,1886.1,3.03535947]
[1771838260540,3.20342789,1886.4,1886.1,3.03535947]
[1771838260940,3.20342789,1886.4,1886.0,5.28315544]
[1771838261243,3.20342789,1886.4,1886.0,3.03535947]
[1771838261945,3.20342789,1886.2,1885.9,3.03535947]
[1771838263243,3.20342789,1886.2,1885.8,3.0392359]
[1771838264447,3.20342789,1886.2,1885.7,3.03535947]
[1771838264747,3.20342789,1886.0,1885.2,3.03535947]
[1771838264942,3.73611234,1885.9,1885.2,3.03535947]
[1771838265143,3.20342789,1885.9,1885.2,3.03535947]
[1771838265344,3.46863789,1885.7,1885.2,3.03535947]
[1771838265743,3.47414031,1885.7,1885.2,3.04099721]
[1771838268642,3.47414031,1885.7,1885.2,0.00563774]
[1771838270151,3.47414031,1885.7,1885.2,3.5458784]
[1771838271752,3.47414031,1885.7,1885.2,0.00563774]
[1771838273554,3.47414031,1885.7,1885.2,3.5458784]
[1771838275055,3.47414031,1885.7,1885.2,0.00563774]
[1771838279862,3.47414031,1885.7,1885.2,3.5458784]
[1771838281461,3.47414031,1885.7,1885.2,0.00563774]
[1771838281656,3.47414031,1885.7,1885.3,2.2503823]
[1771838281862,3.47414031,1885.7,1885.2,3.5458784]
[1771838282868,3.47414031,1885.7,1885.2,0.00563774]
[1771838283063,3.59428497,1885.3,1884.9,3.54024066]
[1771838283267,3.59428497,1885.3,1884.7,3.54024066]
[1771838283463,3.59428497,1885.0,1884.4,3.54024066]
[1771838283670,3.59428497,1885.3,1884.8,3.54024066]
[1771838283872,3.59428497,1885.3,1884.7,5.79062296]
[1771838284064,3.59428497,1885.3,1884.7,5.79569229]
[1771838285371,3.59428497,1885.3,1884.7,3.54530999]
[1771838286369,3.59428497,1885.3,1884.7,0.00506933]
[1771838293469,3.59428497,1885.1,1884.7,0.00506933]
[1771838294668,3.59428497,1885.1,1884.5,5.79062296]
[1771838294866,3.59428497,1885.1,1884.5,3.54024066]
[1771838295073,3.59428497,1884.9,1884.4,3.54024066]
[1771838295667,3.59428497,1884.9,1884.4,3.54528906]
[1771838295867,3.59428497,1884.9,1884.4,0.0050484]
[1771838296068,3.59428497,1884.9,1884.1,3.54024066]
[1771838296376,3.59428497,1884.5,1883.9,3.54024066]
[1771838297171,3.59428497,1884.5,1883.9,3.54706084]
[1771838297372,3.59428497,1884.5,1883.9,5.79744314]
[1771838298572,3.59428497,1884.5,1884.0,3.82951807]
[1771838298773,3.59428497,1884.5,1883.9,6.08672055]
[1771838298972,3.59428497,1884.5,1883.9,3.83633825]
[1771838299171,3.92475688,1884.3,1883.9,0.00682018]
[1771838299374,3.92849442,1884.3,1883.9,0.00682018]
[1771838300275,3.92849442,1884.3,1883.8,3.82951807]
[1771838300470,0.00373754,1884.3,1883.8,3.82951807]
[1771838300676,3.92849442,1884.3,1883.9,6.07990037]
[1771838300876,3.92849442,1884.3,1883.8,3.82951807]
[1771838301076,3.92849442,1884.3,1883.8,3.83341664]
[1771838305178,0.00373754,1884.3,1883.8,3.83341664]
[1771838305380,3.92475688,1884.5,1884.2,3.82951807]
[1771838306381,3.92890099,1884.5,1884.2,3.82951807]
[1771838306781,3.92890099,1884.5,1884.1,2.2503823]
[1771838306982,3.92890099,1884.5,1884.1,6.07990037]
[1771838307182,3.92890099,1884.5,1884.1,3.82951807]
[1771838308789,3.92890099,1884.5,1883.9,3.82951807]
[1771838308983,3.92890099,1884.5,1884.0,3.82951807]
[1771838310387,3.92890099,1884.5,1883.9,2.2503823]
[1771838310587,3.92890099,1884.5,1883.9,6.07990037]
[1771838312196,3.92890099,1884.5,1883.9,3.82951807]
[1771838312698,3.92890099,1884.5,1884.0,3.82951807]
[1771838317104,3.92890099,1884.5,1883.9,3.82951807]
[1771838317700,3.92890099,1884.5,1883.8,0.00389857]
[1771838318004,3.92890099,1884.5,1883.8,3.83341664]
[1771838318304,4.19428099,1884.5,1883.8,3.83341664]
[1771838318602,4.19428099,1884.5,1883.8,0.00389857]
[1771838318802,4.19428099,1884.5,1883.8,3.83341664]
[1771838320203,3.92475688,1884.3,1883.8,3.83341664]
[1771838322806,3.92475688,1884.3,1883.7,3.82951807]
[1771838323204,3.92475688,1884.1,1883.7,3.82951807]
[1771838323808,3.92475688,1884.1,1883.7,3.83447323]
[1771838328208,3.92475688,1884.1,1883.7,0.00495516]
[1771838328409,4.07945629,1883.9,1883.5,3.934396]
[1771838329411,4.07945629,1883.9,1883.5,3.93821417]
[1771838329812,4.07945629,1884.2,1883.6,3.934396]
[1771838330007,4.60837016,1884.1,1883.6,3.934396]
[1771838330207,4.60837016,1884.0,1883.6,3.934396]
[1771838330413,4.07945629,1884.0,1883.6,3.934396]
[1771838330904,0.26539,1884.4,1883.6,3.934396]
[1771838330905,4.07945629,1884.3,1883.6,3.934396]
[1771838331108,4.6082851,1884.2,1883.6,3.934396]
[1771838331308,4.6082851,1884.1,1883.6,3.934396]
[1771838331511,4.07945629,1884.1,1883.6,3.934396]
[1771838331806,4.07945629,1884.3,1883.6,3.934396]
[1771838332015,0.52878011,1884.2,1883.6,3.934396]
[1771838332309,0.52878011,1884.1,1883.6,3.934396]
[1771838332509,4.07945629,1884.3,1883.6,3.934396]
[1771838332711,4.07945629,1884.1,1883.6,3.934396]
[1771838334112,4.07945629,1883.9,1882.8,6.1873074]
[1771838334416,4.07945629,1883.7,1882.9,3.934396]
[1771838335317,4.07945629,1883.7,1882.9,3.940814]
[1771838338821,4.07945629,1884.0,1883.2,3.934396]
[1771838339120,0.26544,1884.1,1883.2,3.934396]
[1771838339121,4.60707576,1883.9,1883.2,3.934396]
[1771838339319,4.07945629,1883.9,1883.2,3.934396]
[1771838339714,4.07945629,1883.9,1883.4,3.934396]
[1771838347029,4.34489629,1884.1,1883.5,3.934396]
[1771838347227,0.52768838,1884.0,1883.5,3.934396]
[1771838347424,4.07945629,1884.0,1883.5,3.934396]
[1771838350033,4.07945629,1884.0,1883.4,3.934396]
[1771838351124,4.07945629,1883.8,1883.4,3.934396]
[1771838355340,4.07945629,1883.8,1883.3,3.934396]
[1771838356137,4.07945629,1883.8,1883.0,3.934396]
[1771838362342,3.8534628,1883.6,1883.0,3.934396]
[1771838364343,3.8534628,1883.4,1882.9,4.25347159]
[1771838366138,3.8534628,1883.5,1882.9,4.25347159]
[1771838366345,3.8534628,1883.7,1882.9,4.25347159]
[1771838375253,3.8534628,1883.7,1883.1,4.24705359]
[1771838376248,0.52890042,1883.6,1883.1,4.24705359]
[1771838376454,3.8534628,1883.5,1883.1,4.24705359]
[1771838379056,3.8534628,1883.5,1882.9,4.25347159]
[1771838381656,3.8534628,1883.5,1883.1,4.24705359]
[1771838383456,3.8534628,1883.5,1883.2,6.50232414]
[1771838383655,3.8534628,1883.5,1883.1,4.24705359]
[1771838391050,3.902701,1883.3,1882.9,0.006418]
[1771838391257,3.902701,1883.3,1883.0,3.96412675]
[1771838391760,3.902701,1883.4,1883.0,3.96412675]
[1771838392059,0.52917677,1883.3,1883.0,3.96412675]
[1771838392363,3.902701,1883.4,1883.0,3.96412675]
[1771838392663,0.52910438,1883.3,1883.0,3.96412675]
[1771838392857,3.902701,1883.4,1883.0,3.96412675]
[1771838393159,0.5291044,1883.3,1883.0,3.96412675]
[1771838393361,3.902701,1883.4,1883.0,3.96412675]
[1771838393562,0.52902523,1883.3,1883.0,3.96412675]
[1771838393859,3.902701,1883.4,1883.0,3.96412675]
[1771838394056,0.52902524,1883.3,1883.0,3.96412675]
[1771838394255,3.902701,1883.4,1883.0,3.96412675]
[1771838394460,8.35042466,1883.8,1883.4,3.96412675]
[1771838394662,4.43167428,1883.7,1883.3,6.2193973]
[1771838394861,4.43167428,1883.6,1883.2,3.96412675]
[1771838395161,3.902701,1883.6,1883.2,3.96412675]
[1771838399161,3.902701,1883.8,1883.4,3.96412675]
[1771838400761,3.902701,1884.2,1883.6,3.96412675]
[1771838401067,10.75285926,1884.1,1883.8,3.96412675]
[1771838401261,3.902701,1884.1,1883.8,3.96412675]
[1771838403566,0.55034157,1884.1,1883.8,3.96412675]
[1771838405568,0.55034157,1884.1,1883.6,3.96412675]
[1771838422090,2.28123797,1884.0,1883.6,3.96412675]
[1771838422290,2.01579797,1883.9,1883.6,3.96412675]
[1771838422487,2.28123786,1884.0,1883.5,4.38269651]
[1771838422680,2.54010624,1883.9,1883.5,4.38269651]
[1771838422886,2.28123786,1884.0,1883.5,4.38269651]
[1771838423081,0.52430321,1883.9,1883.5,4.38269651]
[1771838423290,2.28123786,1884.0,1883.5,4.38269651]
[1771838423491,0.52449741,1883.9,1883.5,4.38269651]
[1771838423693,2.28123786,1884.0,1883.5,4.38269651]
[1771838423895,0.52449741,1883.9,1883.5,4.38269651]
[1771838424186,0.52473004,1883.8,1883.5,4.38269651]
[1771838424391,2.28123786,1884.0,1883.5,4.38269651]
[1771838424591,0.52473004,1883.9,1883.5,4.38269651]
[1771838424785,0.52473004,1883.8,1883.5,4.38269651]
[1771838424988,2.28123786,1884.0,1883.5,4.38269651]
[1771838425191,0.52473002,1883.9,1883.5,4.38269651]
[1771838425392,0.52473002,1883.8,1883.5,4.38269651]
[1771838425692,2.28123786,1884.0,1883.5,4.38269651]
[1771838425894,0.52482285,1883.9,1883.5,4.38269651]
[1771838426089,0.52482285,1883.8,1883.5,4.38269651]
[1771838426291,2.28123786,1884.0,1883.5,4.38269651]
[1771838426491,0.52492819,1883.9,1883.5,4.38269651]
[1771838426690,0.52492819,1883.8,1883.5,4.38269651]
[1771838426896,2.28123786,1884.0,1883.5,4.38269651]
[1771838427095,0.52492819,1883.9,1883.5,4.38269651]
[1771838427296,0.52492819,1883.8,1883.5,4.38269651]
[1771838427497,2.28123786,1884.0,1883.5,4.38269651]
[1771838427696,9.28940126,1883.9,1883.5,4.38269651]
[1771838427896,0.52503531,1883.8,1883.5,4.38269651]
[1771838428197,0.52514194,1883.7,1883.5,4.38269651]
[1771838428498,4.27270972,1883.9,1883.5,4.38269651]
[1771838428698,2.52075055,1883.7,1883.0,4.38269651]
[1771838428898,0.26548,1883.7,1883.0,4.38269651]
[1771838431293,2.77673134,1883.7,1883.0,4.38269651]
[1771838431499,0.52507501,1883.6,1883.0,4.38269651]
[1771838431793,5.03200189,1883.7,1883.0,4.38269651]
[1771838433599,3.05378475,1883.6,1883.0,4.38269651]
[1771838433798,2.52889714,1883.6,1883.0,4.38269651]
[1771838434500,5.30856211,1883.5,1883.0,4.38269651]
[1771838434700,4.7837918,1883.5,1883.0,4.38269651]
[1771838435000,2.52804104,1883.6,1883.0,4.38269651]
[1771838435298,0.52476749,1883.5,1883.0,4.38269651]
[1771838435496,2.52804104,1883.6,1883.0,4.38269651]
[1771838435696,0.52462352,1883.5,1883.0,4.38269651]
[1771838435896,2.52804104,1883.6,1883.0,4.38269651]
[1771838438697,0.52434575,1883.5,1883.0,4.38269651]
[1771838438891,2.52804104,1883.6,1883.0,4.38269651]
[1771838439096,0.52434575,1883.5,1883.0,4.38269651]
[1771838439302,2.52804104,1883.6,1883.0,4.38269651]
[1771838439502,0.52428888,1883.5,1883.0,4.38269651]
[1771838439800,2.52804104,1883.6,1883.0,4.38269651]
[1771838441095,2.64407042,1883.5,1883.0,4.38269651]
[1771838442903,2.64229671,1883.6,1883.0,4.38269651]
[1771838443104,0.26548,1883.7,1883.0,4.38269651]
[1771838443302,0.5241944,1883.6,1883.0,4.38269651]
[1771838443503,2.90777671,1883.7,1883.0,4.38269651]
[1771838443704,0.52419441,1883.6,1883.0,4.38269651]
[1771838443895,2.90777671,1883.7,1883.0,4.38269651]
[1771838444295,0.52421867,1883.6,1883.0,4.38269651]
[1771838444502,2.90777671,1883.7,1883.0,4.38269651]
[1771838444700,0.52421868,1883.6,1883.0,4.38269651]
[1771838444901,2.90777671,1883.7,1883.0,4.38269651]
[1771838445103,0.52421873,1883.6,1883.0,4.38269651]
[1771838445398,2.90777671,1883.7,1883.0,4.38269651]
[1771838445600,0.5242487,1883.6,1883.0,4.38269651]
[1771838445800,2.90777671,1883.7,1883.0,4.38269651]
[1771838446003,0.5242487,1883.6,1883.0,4.38269651]
[1771838446205,2.90777671,1883.7,1883.0,4.38269651]
[1771838446406,0.52428995,1883.6,1883.0,4.38269651]
[1771838446706,2.90777671,1883.7,1883.0,4.38269651]
[1771838446904,0.52428995,1883.6,1883.0,4.38269651]
[1771838447208,2.55816641,1883.6,1883.0,4.38269651]
[1771838448602,0.52440974,1883.5,1883.0,4.38269651]
[1771838448807,2.54741762,1883.5,1883.0,4.38269651]
[1771838450113,3.07086243,1883.4,1883.0,4.38269651]
[1771838450301,2.54630942,1883.4,1883.0,4.38269651]
[1771838450610,2.54627802,1883.6,1883.0,4.38269651]
[1771838450811,3.07083104,1883.5,1883.0,4.38269651]
[1771838451112,0.52465493,1883.4,1883.0,4.38269651]
[1771838451410,2.54480738,1883.6,1883.0,4.38269651]
[1771838451615,0.52465493,1883.5,1883.0,4.38269651]
[1771838451816,0.52465493,1883.4,1883.0,4.38269651]
[1771838452016,2.54480738,1883.6,1883.0,4.38269651]
[1771838452218,0.52477097,1883.5,1883.0,4.38269651]
[1771838452418,0.52477097,1883.4,1883.0,4.38269651]
[1771838452718,2.8158151,1883.5,1883.0,4.38269651]
[1771838453015,2.54874266,1883.3,1882.9,4.3508902]
[1771838455924,0.26551,1883.5,1882.9,4.3508902]
[1771838456123,0.52489394,1883.4,1882.9,4.3508902]
[1771838456320,0.26551,1883.5,1882.9,4.3508902]
[1771838456520,0.52496716,1883.4,1882.9,4.3508902]
[1771838456820,0.26551,1883.5,1882.9,4.3508902]
[1771838457021,0.52496724,1883.4,1882.9,4.3508902]
[1771838457323,0.26551,1883.5,1882.9,4.3508902]
[1771838457522,0.52506325,1883.4,1882.9,4.3508902]
[1771838457724,0.26551,1883.5,1882.9,4.3508902]
[1771838457925,0.52506325,1883.4,1882.9,4.3508902]
[1771838458224,6.92078423,1883.8,1882.9,4.3508902]
[1771838458423,9.75121215,1883.7,1882.9,4.3508902]
[1771838458728,7.27230887,1883.6,1882.9,4.3508902]
[1771838459022,0.52515412,1883.5,1882.9,4.3508902]
[1771838459226,0.52515412,1883.4,1882.9,4.3508902]
[1771838459522,2.47890328,1883.7,1882.9,4.3508902]
[1771838459722,7.27301202,1883.6,1882.9,4.3508902]
[1771838459915,0.52522959,1883.5,1882.9,4.3508902]
[1771838460114,0.52522959,1883.4,1882.9,4.3508902]
[1771838460314,2.47890328,1883.7,1882.9,4.3508902]
[1771838460617,7.27409056,1883.6,1882.9,4.3508902]
[1771838460818,0.52530673,1883.5,1882.9,4.3508902]
[1771838461015,2.38954135,1883.8,1882.9,4.3508902]
[1771838461216,6.74866848,1883.7,1882.9,4.3508902]
[1771838461419,2.38954135,1883.8,1882.9,4.3508902]
[1771838461420,6.74866848,1883.6,1882.9,4.3508902]
[1771838461625,2.38954135,1883.8,1882.9,4.3508902]
[1771838461823,9.66996587,1883.7,1882.9,4.3508902]
[1771838462022,6.75002603,1883.6,1882.9,4.3508902]
[1771838462324,2.91993984,1883.7,1882.9,4.3508902]
[1771838462524,6.750793,1883.6,1882.9,4.3508902]
[1771838462819,2.91993984,1883.7,1882.9,4.3508902]
[1771838463024,6.75079207,1883.6,1882.9,4.3508902]
[1771838463222,2.91993984,1883.7,1882.9,4.3508902]
[1771838463423,6.75148605,1883.6,1882.9,4.3508902]
[1771838463622,2.91993984,1883.7,1882.9,4.3508902]
[1771838463824,6.75150836,1883.6,1882.9,4.3508902]
[1771838464026,2.91993984,1883.7,1882.9,4.3508902]
[1771838464225,6.75150836,1883.6,1882.9,4.3508902]
[1771838464425,2.99557685,1883.8,1882.9,4.3508902]
[1771838464627,6.75161808,1883.7,1882.9,4.3508902]
[1771838464823,2.99377233,1883.5,1882.9,4.3508902]
[1771838473028,3.50809724,1883.4,1882.9,4.3508902]
[1771838473230,0.52168028,1883.3,1882.9,4.3508902]
[1771838473532,2.98641696,1883.4,1882.9,4.3508902]
[1771838473733,0.52167385,1883.3,1882.9,4.3508902]
[1771838473934,2.98641696,1883.4,1882.9,4.3508902]
[1771838474130,3.44846788,1883.3,1882.9,0.006418]
[1771838474334,0.52167116,1883.2,1882.9,4.3508902]
[1771838474529,2.92672983,1883.4,1882.4,4.3444722]
[1771838474728,5.0678005,1883.3,1882.4,4.3444722]
[1771838474929,5.0678005,1883.2,1882.4,4.3444722]
[1771838475126,4.54613197,1883.2,1882.4,4.3444722]
[1771838475540,4.54613197,1883.2,1882.4,4.34821513]
[1771838475927,0.52159052,1883.1,1882.4,4.34821513]
[1771838476127,4.55089295,1883.1,1882.4,4.34821513]
[1771838481339,0.00476098,1883.1,1882.4,4.34821513]
[1771838481539,0.00476098,1883.1,1882.5,4.46592387]
[1771838495648,4.35589803,1883.1,1882.5,4.46592387]
[1771838497355,4.35113705,1882.7,1882.4,0.00374293]
[1771838497555,4.35113705,1882.7,1882.3,4.46592387]
[1771838497855,0.26558,1883.0,1881.5,0.26579]
[1771838497856,4.35113705,1882.5,1882.0,4.46592387]
[1771838498152,4.35113705,1882.9,1882.2,4.46592387]
[1771838498353,7.32033927,1882.8,1882.2,4.46592387]
[1771838498548,0.52055157,1882.7,1882.2,4.47180338]
[1771838498748,0.52055467,1882.6,1882.2,4.47180338]
[1771838498950,4.2676004,1882.8,1882.2,4.47180338]
[1771838499156,4.87168896,1882.7,1882.2,4.47180338]
[1771838499355,4.35113705,1882.7,1882.2,4.47180338]
[1771838499550,6.60856374,1883.0,1882.2,4.47180338]
[1771838499756,7.31745207,1882.9,1882.2,4.47180338]
[1771838499960,7.31745207,1882.8,1882.2,4.47180338]
[1771838500157,0.52034836,1882.7,1882.2,4.47180338]
[1771838500358,4.35113705,1882.9,1882.2,4.47180338]
[1771838500548,0.52023316,1882.8,1882.2,4.47180338]
[1771838500748,0.52023316,1882.7,1882.2,4.47180338]
[1771838501050,4.35113705,1882.9,1882.2,4.47180338]
[1771838501248,4.87137013,1882.8,1882.2,4.47180338]
[1771838501449,0.52023308,1882.7,1882.2,4.47180338]
[1771838501647,4.35113705,1882.8,1882.2,4.47180338]
[1771838501855,0.52015101,1882.7,1882.2,4.47180338]
[1771838502054,4.35113705,1882.8,1882.2,4.47180338]
[1771838502254,4.87128805,1882.7,1882.2,4.47180338]
[1771838502455,4.35113705,1882.7,1882.2,4.47180338]
[1771838507164,4.35113705,1882.9,1882.4,4.46592387]
[1771838507464,0.51979621,1882.8,1882.4,4.46592387]
[1771838507659,4.35113705,1882.9,1882.4,4.46592387]
[1771838507855,4.40474247,1882.8,1882.4,4.46592387]
[1771838508059,3.88494605,1882.8,1882.4,4.46592387]
[1771838508462,3.88494605,1882.7,1882.2,4.1734162]
[1771838508861,6.927755,1882.6,1881.9,4.16753669]
[1771838509062,4.15058605,1882.6,1881.9,4.16753669]
[1771838509870,4.15058605,1882.6,1881.9,4.17293882]
[1771838510064,4.15058605,1882.6,1882.1,4.16753669]
[1771838514371,0.26564,1882.6,1882.1,4.16753669]
[1771838515471,3.88494605,1882.5,1882.1,4.16753669]
[1771838522276,4.15058605,1882.6,1882.1,4.16753669]
[1771838522873,3.88494605,1882.9,1882.2,2.25742669]
[1771838523172,11.2130929,1882.8,1882.3,4.16753669]
[1771838523373,0.51996697,1882.7,1882.3,4.16753669]
[1771838523570,3.88494605,1882.8,1882.3,4.16753669]
[1771838523770,0.52015404,1882.7,1882.3,4.16753669]
[1771838524073,3.88494605,1882.8,1882.3,4.16753669]
[1771838524269,0.52034951,1882.7,1882.3,4.16753669]
[1771838524469,3.88494605,1882.8,1882.3,4.16753669]
[1771838524772,0.52037748,1882.7,1882.3,4.16753669]
[1771838525074,3.88494605,1882.8,1882.3,4.16753669]
[1771838525275,0.52063717,1882.7,1882.3,4.16753669]
[1771838525574,3.88494605,1882.8,1882.3,4.16753669]
[1771838525773,0.52065885,1882.7,1882.3,4.16753669]
[1771838525974,3.88494605,1882.8,1882.3,4.16753669]
[1771838526167,0.52065885,1882.7,1882.3,4.16753669]
[1771838526367,0.52065885,1882.6,1882.3,4.16753669]
[1771838526576,3.88494605,1882.8,1882.3,4.16753669]
[1771838526766,0.5209174,1882.7,1882.3,4.16753669]
[1771838526971,0.5209174,1882.6,1882.3,4.16753669]
[1771838527176,3.88494605,1882.8,1882.3,4.16753669]
[1771838527470,7.34441711,1882.7,1882.3,4.16753669]
[1771838527776,0.52129875,1882.6,1882.3,4.16753669]
[1771838527977,3.88494605,1882.8,1882.3,4.16753669]
[1771838528275,11.22936316,1882.7,1882.3,4.16753669]
[1771838528474,0.52129875,1882.6,1882.3,4.16753669]
[1771838528676,3.88494605,1882.7,1882.3,4.16753669]
[1771838528877,0.52129252,1882.6,1882.3,4.16753669]
[1771838529072,3.88494605,1882.9,1882.3,4.16753669]
[1771838529266,11.22909263,1882.8,1882.3,4.16753669]
[1771838529470,7.34414658,1882.7,1882.3,4.16753669]
[1771838529672,0.52128794,1882.6,1882.3,4.16753669]
[1771838529872,3.88494605,1882.8,1882.3,4.16753669]
[1771838530072,11.22899951,1882.7,1882.3,4.16753669]
[1771838530271,0.52128614,1882.6,1882.3,4.16753669]
[1771838530475,3.88494605,1882.8,1882.3,4.16753669]
[1771838530674,7.34407366,1882.7,1882.3,4.16753669]
[1771838530975,0.52128757,1882.6,1882.3,4.16753669]
[1771838531172,3.88494605,1882.8,1882.3,4.16753669]
[1771838531372,7.34408176,1882.7,1882.3,4.16753669]
[1771838531573,3.88494605,1882.8,1882.3,4.16753669]
[1771838531574,0.52128825,1882.6,1882.3,4.16753669]
[1771838531774,3.88494605,1882.8,1882.3,4.16753669]
[1771838531976,7.34408214,1882.7,1882.3,4.16753669]
[1771838532275,0.52128825,1882.6,1882.3,4.16753669]